Cogmind - Beta 10.2 @@@ ROGUE MODE // 2020.11.29 @ 23:21:00 // Halloween2020/ForbiddenLore Player: CrossedViper Result: Self-destructed Performance ------------- Evolutions (1) 500 Regions Visited (3) 600 Robots Destroyed (22) 110 Value Destroyed (487) 487 Prototype IDs (1) 20 Alien Tech Used (0) 0 Bonus (0) 0 TOTAL SCORE: 1717 Bonus ------- None Cogmind --------- Core Integrity 213/400 Matter 174/300 Energy 100/100 System Corruption 0% Temperature Cool (9) Movement Treading (160) Location -9/Materials Parts ------- > --- POWER (1) -------- (None) > --- PROPULSION (2) --- Light Treads Aluminum Leg > --- UTILITY (3) ------ Small Storage Unit > --- WEAPON (3) ------- Faulty Improved EM Shotgun > --- INVENTORY (6) ---- Light Treads EM Pulse Gun Welding Torch Peak State ------------ > --- POWER ------------ Light Ion Engine > --- PROPULSION ------- Light Treads Aluminum Leg > --- UTILITY ---------- Small Storage Unit > --- WEAPON ----------- Spread Laser Light Cannon Light Cannon > --- INVENTORY -------- Light Treads EM Pulse Gun Light Cannon Welding Torch [Rating: 8] Favorites ----------- Power Light Ion Engine Engine Light Ion Engine Propulsion Aluminum Leg Treads Light Treads Leg Aluminum Leg Utility Small Storage Unit Storage Small Storage Unit Weapon Light Cannon Energy Gun Spread Laser Ballistic Gun Light Assault Rifle Ballistic Cannon Light Cannon Build | -11 -10 -10 -9 ------- Run | Scr Mat Min Mat Slots Evolved 2 | . . . 2 Power . | . . . . Propulsion . | . . . . Utility 1 | . . . 1 Weapon 1 | . . . 1 Parts Attached 7 | . 2 . 5 Power 1 | . . . 1 Engine 1 | . . . 1 Core . | . . . . Reactor . | . . . . Propulsion 1 | . . . 1 Treads 1 | . . . 1 Leg . | . . . . Wheel . | . . . . Hover . | . . . . Flight . | . . . . Utility . | . . . . Device . | . . . . Storage . | . . . . Processor . | . . . . Hackware . | . . . . Protection . | . . . . Artifact . | . . . . Weapon 5 | . 2 . 3 Energy Gun 2 | . . . 2 Energy Cannon . | . . . . Ballistic Gun . | . . . . Ballistic Cannon 3 | . 2 . 1 Launcher . | . . . . Special Weapon . | . . . . Impact Weapon . | . . . . Slashing Weapon . | . . . . Piercing Weapon . | . . . . Special Melee Weapon . | . . . . Unidentified Prototypes 1 | . . . 1 Parts Lost 7 | . . 2 5 Power 2 | . . 1 1 Propulsion 1 | . . 1 . Utility . | . . . . Weapon 4 | . . . 4 Highest Loss Streak 2 | . . 2 2 Average Slot Usage (%) 67 | . 83 71 62 Engine 9 | . 14 4 8 Treads 8 | . . . 11 Leg 15 | . 28 23 11 Storage 11 | . 14 14 11 Energy Gun 4 | . 3 . 5 Ballistic Cannon 17 | . 19 28 15 Naked Turns . | . . . . Heaviest Build 13 | 9 13 10 13 Greatest Support 20 | 20 20 10 10 Greatest Overweight (x) 1 | . . . 1 Average Overweight (x) . | . . . . Largest Inventory Capacity 6 | . 6 6 6 Average Capacity 6 | . 6 6 6 Most Carried 6 | . 6 6 5 Average Carried 4 | . 5 6 3 Final Capacity 6 | 6 6 6 6 Final Carried 6 | 6 6 6 3 Class Distribution -------------------- 100% | Mutant Dominant Class ---------------- Mutant | -10/Materials Mutant | -10/Mines Mutant | -9/Materials Resources | -11 -10 -10 -9 ----------- Run | Scr Mat Min Mat Matter Collected 529 | 187 . . 342 Remotely . | . . . . Salvage Created 523 | . 21 33 469 Parts 34 | . 5 6 23 Haulers Intercepted 1 | . . . 1 Recyclers Shooed 1 | . . . 1 Parts Field Recycled . | . . . . Retrieved Matter . | . . . . Parts Self-Destructed . | . . . . Prevented . | . . . . Kills | -11 -10 -10 -9 ------- Run | Scr Mat Min Mat Combat Hostiles Destroyed 18 | . 3 5 10 Cannons 18 | . 3 5 10 Classes Destroyed 6 | . 1 1 4 Hauler 1 | . . . 1 Recycler 3 | . . . 3 Swarmer 9 | . 3 3 3 Grunt 4 | . . . 4 Sentry 3 | . . . 3 Demolisher 2 | . . 2 . Best Kill Streak 9 | . 3 5 9 Combat Bots Only 6 | . 3 5 6 Max Kills in Single Turn 1 | . 1 1 1 Gunslinging . | . . . . Exploded . | . . . . Melee . | . . . . Uniques/NPCs Destroyed . | . . . . Combat | -11 -10 -10 -9 -------- Run | Scr Mat Min Mat Damage Taken 1287 | . 90 436 761 Core 363 | . 18 158 187 Absorbed by Shields . | . . . . Core Remaining (%) 64 | 100 . 29 . Volleys Fired 75 | . 12 7 56 Largest 2 | . 2 2 2 Hottest 100 | . 70 70 100 Shots Fired 108 | . 24 14 70 Gun 3 | . . . 3 Cannon 105 | . 24 14 67 Launcher . | . . . . Special . | . . . . Kinetic 105 | . 24 14 67 Thermal 3 | . . . 3 Explosive . | . . . . Electromagnetic . | . . . . Robot Hit Streak 10 | . 2 2 10 Robot Miss Streak 4 | . 4 3 3 Penetration Max . | . . . . Secondary Targets . | . . . . Shots Hit Robots 64 | . 8 5 51 Core Hits 32 | . 3 5 24 Critical Hits 2 | . . . 2 Critical Kills 1 | . . . 1 Critical Parts Destroyed 1 | . . . 1 Melee Attacks . | . . . . Impact . | . . . . Slashing . | . . . . Piercing . | . . . . Sneak Attacks . | . . . . Combat Hostiles . | . . . . Follow-up Attacks . | . . . . Damage Inflicted 1158 | . 115 150 893 Guns 35 | . . . 35 Cannons 1123 | . 115 150 858 Explosions . | . . . . Melee . | . . . . Ramming . | . . . . Kinetic 1123 | . 115 150 858 Thermal 35 | . . . 35 Explosive . | . . . . Electromagnetic . | . . . . Impact . | . . . . Slashing . | . . . . Piercing . | . . . . Highest Corruption 1 | . 1 1 . Average Corruption 1 | . 1 1 . Corruption Purged . | . . . . Effects 1 | . . 1 . Message Errors 1 | . . 1 . Overload Shots . | . . . . Overflow Damage 5 | . 5 . . Projectiles 5 | . 5 . . Explosions . | . . . . Melee . | . . . . Knockbacks 7 | . . 1 6 Impact . | . . . . Kinetic 6 | . . 1 5 Secondary 1 | . . . 1 Self-Inflicted Damage . | . . . . Shots . | . . . . Rammed . | . . . . Targets Rammed . | . . . . Kicked . | . . . . Crushed . | . . . . Highest Temperature 90 | . 63 34 90 Average Temperature 23 | . 28 18 20 Received Heat Transfer 261 | . . 12 249 Siege Activations . | . . . . Robots Corrupted . | . . . . Combat Hostiles . | . . . . Parts Fried . | . . . . Impact Corruptions . | . . . . Robots Melted . | . . . . Combat Hostiles . | . . . . Parts Melted . | . . . . Heat Transferred 40 | . . . 40 Parts Sabotaged . | . . . . Parts Stolen . | . . . . Parts Stripped . | . . . . Power Chain Reactions . | . . . . Missiles Intercepted . | . . . . Alert | -11 -10 -10 -9 ------- Run | Scr Mat Min Mat Peak Influence 377 | . 70 142 377 Initial 55 | . . 27 55 Average 126 | . 43 119 152 Maximum Alert Level 1 | . . . 1 Low Security (%) 84 | . 100 100 78 Level 1 15 | . . . 21 Level 2 . | . . . . Level 3 . | . . . . Level 4 . | . . . . Level 5 . | . . . . High Security . | . . . . Max Security . | . . . . Squads Dispatched 2 | . 1 . 1 Investigation . | . . . . Extermination . | . . . . Reinforcement 2 | . 1 . 1 Assault . | . . . . Garrison . | . . . . Intercept . | . . . . Construction Impeded . | . . . . Haulers Reinforced . | . . . . Stealth | -11 -10 -10 -9 --------- Run | Scr Mat Min Mat Distress Signals . | . . . . Communications Jammed . | . . . . Distress Signals . | . . . . Times Spotted 31 | . 9 7 15 Peak Tracking Total 7 | . 5 3 7 Tactical Retreats 1 | . . . 1 Traps | -11 -10 -10 -9 ------- Run | Scr Mat Min Mat Traps Triggered 1 | . 1 . . Indirectly . | . . . . Trap Hack Attempts . | . . . . Triggered . | . . . . Disarmed . | . . . . Reprogrammed . | . . . . Reused . | . . . . Traps Extracted . | . . . . Installed . | . . . . Triggered . | . . . . Machines | -11 -10 -10 -9 ---------- Run | Scr Mat Min Mat Machines Disabled . | . . . . Max in Single Turn . | . . . . Machines Sabotaged . | . . . . Garrisons Compromised . | . . . . Overloaded Fab Kills . | . . . . Fab Network Shutdowns . | . . . . Hacking | -11 -10 -10 -9 --------- Run | Scr Mat Min Mat Machines Accessed . | . . . . Terminals . | . . . . Fabricators . | . . . . Repair Stations . | . . . . Recycling Units . | . . . . Scanalyzers . | . . . . Garrison Access . | . . . . Total Hacks . | . . . . Successful . | . . . . Failed . | . . . . Catastrophic . | . . . . Database Lockouts . | . . . . Manual . | . . . . Terminals . | . . . . Fabricators . | . . . . Repair Stations . | . . . . Recycling Units . | . . . . Scanalyzers . | . . . . Garrison Access . | . . . . Terminal Hacks . | . . . . Fabricator Hacks . | . . . . Repair Station Hacks . | . . . . Recycling Unit Hacks . | . . . . Scanalyzer . | . . . . Garrison Access Hacks . | . . . . Unauthorized Hacks . | . . . . Terminals . | . . . . Fabricators . | . . . . Repair Stations . | . . . . Recycling Units . | . . . . Scanalyzers . | . . . . Garrison Access . | . . . . Data Cores Recovered . | . . . . Used . | . . . . Hacking Detections . | . . . . Full Trace Events . | . . . . Feedback Events . | . . . . Feedback Blocked . | . . . . Robot Schematics Acquired . | . . . . Robots Built . | . . . . Matter . | . . . . Time . | . . . . Total Robot Build Rating . | . . . . Part Schematics Acquired . | . . . . Parts Built . | . . . . Matter . | . . . . Time . | . . . . Total Part Build Rating . | . . . . Parts Repaired . | . . . . Time . | . . . . Parts Recycled . | . . . . Recycled Matter . | . . . . Retrieved Matter . | . . . . Retrieved Components . | . . . . Parts Scanalyzed . | . . . . Part Schematics Acquired . | . . . . Parts Damaged . | . . . . Bothacking | -11 -10 -10 -9 ------------ Run | Scr Mat Min Mat Used RIF Installer . | . . . . Robots Hacked . | . . . . Non-combat . | . . . . Combat . | . . . . Robot Hacks Applied . | . . . . Relay Couplers Released . | . . . . Robots Rewired . | . . . . Allies Hacked . | . . . . Hacks Repelled . | . . . . Allies | -11 -10 -10 -9 -------- Run | Scr Mat Min Mat Total Allies . | . . . . Largest Group . | . . . . Highest-Rated Group . | . . . . Highest-Rated Ally . | . . . . Total Orders . | . . . . Ally Attacks . | . . . . Total Damage . | . . . . Kills . | . . . . Allies Corrupted . | . . . . Allies Melted . | . . . . Intel | -11 -10 -10 -9 ------- Run | Scr Mat Min Mat Robot Analysis Total . | . . . . Derelict Logs Recovered . | . . . . Drone Launches . | . . . . Drone Recoveries . | . . . . Exploration | -11 -10 -10 -9 ------------- Run | Scr Mat Min Mat Turns Passed 560 | . 121 35 404 Spaces Moved 258 | 1 66 12 179 Core . | . . . . Treads . | . . . . Legs 258 | 1 66 12 179 Wheels . | . . . . Hover . | . . . . Flight . | . . . . Fastest Speed 120 | 120 120 120 120 Average Speed 140 | 120 120 120 149 Slowest Speed 150 | 120 120 120 150 Overloaded Moves . | . . . . Propulsion Burnouts . | . . . . Robots Hopped . | . . . . Cave-ins Triggered . | . . . . Exploration Rate (%) 17 | 2 28 10 29 Regions Visited 3 Branch Regions 1 Pre-discovered Areas . | . . . . Known Exits Taken . | . . . . Unknown Exits Taken 3 | 1 1 1 . Scrap Searched . | . . . . Spaces Dug . | . . . . Terrain Destroyed . | . . . . Melee . | . . . . Projectile . | . . . . AOE . | . . . . Terrain Rammed . | . . . . Walls Destroyed . | . . . . Machines Disabled . | . . . . Actions | -11 -10 -10 -9 --------- Run | Scr Mat Min Mat Total 349 | . 85 18 246 Wait 4 | . . . 4 Move 255 | . 65 11 179 Hop . | . . . . Pick Up 4 | . 2 . 2 Fast Attach 2 | . 2 . . Attach 5 | . . . 5 Detach . | . . . . Swap . | . . . . Drop 4 | . 4 . . Fire 75 | . 12 7 56 Melee . | . . . . Ram . | . . . . Kick . | . . . . Crush . | . . . . Escape Stasis . | . . . . Rewire . | . . . . Trap . | . . . . Miscellaneous . | . . . . Route ------- -11/Scrapyard -10/Materials -10/Mines -9/Materials History --------- Turn | Location | Event 1 | -11/Scrapyard | Discovered new exit (range 0) 1 | -11/Scrapyard | Entered Materials 115 | -10/Materials | Discovered new exit (range 6) 122 | -10/Materials | Entered Mines 123 | -10/Mines | Assembled infested the area 137 | -10/Mines | Core integrity fell below 50% 148 | -10/Mines | Discovered new exit (range 8) 157 | -10/Mines | Entered Materials 157 | -9/Materials | Evolved 2 slots: Utility x1, Weapon x1 312 | -9/Materials | Build established: Mutant 561 | -9/Materials | Self-destructed Last Messages --------------- 00513_ Acquired 38 matter. 00516_ R-06 Scavenger collects Aluminum Leg. 00518_ S-10 Pest destroyed. 00521_ A-02 Transporter destroyed. 00525_ R-06 Scavenger collects Med. Storage Unit. 00529_ R-06 Scavenger collects Prototype Energy Gun. 00530_ G-34 Mercenary knocked back. 00533_ R-06 Scavenger collects Prototype Energy Gun. 00534_ G-34 Mercenary destroyed. 00537_ Acquired Prototype Energy Gun. 00538_ Identified Imp. EM Shotgun. 00538_ Aluminum Leg permanently disabled. 00538_ Malfunction: Power surge. 00539_ R-06 Scavenger suffers critical hit. 00539_ Destroyed Tractor Beam. 00539_ R-06 Scavenger knocked back. 00541_ R-06 Scavenger destroyed. 00542_ Acquired 76 matter. 00545_ K-01 Serf collects debris. 00561_ Lgt. Cannon destroyed. Map ----- +----------------------------------------------------+ | ##### """"" #?# # # # # T | | # # """"" #?# ?# # "T" [ # # " | | # # """ #?# ?# # + + | | # # #?#######?## ########### # """ | | # ###+################# #????????# # """ | | #????????# #?""" | | * #????????# ######## | | =%= #??####### + # | | #######+#################! # # | | ????? ??????????????################ # # | | #? ??????????????????# ## #? # | | ## #?????????????????# "T" ## #??T" [# | | ## #?????????????????# ## #???" # | | ## """" #??????????????????? ## #???#### | | ## """" #????????????????????? ## ##?????? | | ## """" #????""""?????##########+## #?????? | | ## #?????"""???+ #?????? | | ########???#?????"""?????######## #?????? | | !#????????????????? ????# = # ### #?????? | | #?????????????????? ????# # ##########???? | | ##????????????????###/###?# + # #???? | | ?????????########## #?# # # #???? | | ???????? #?# [ # + #???? | | ???????? #?# ?# # #???? | | ???????? [!########## # #???? | | ???????????????#### [=!@%%=%%Y + #???? | | ??????????????????## =############## #???? | | ???????????????????# ?????????????# #???? | | ???????????????????# ?????????????# #???? | | ???????????????????# ?????????????##########???? | | ??????????????????? ???????????????????????????? | | ??????????????????# ???????????????????????????? | | ??????????????????# ???????????????????????????? | | ??????????????????# ???????????????????????????? | | ??????????????????# ????????????????????????????? | | ??????????????????## ????????????????????????????? | | ???????????????????# ????????????????????????????? | | ???????????????????# ????????????????????????????? | | ???????????????????#?????????????????????????????? | | ?????????????????????????????????????????????????? | | ?????????????????????????????????????????????????? | | ?????????????????????????????????????????????????? | | ?????????????????????????????????????????????????? | | ?????????????????????????????????????????????????? | | ?????????????????????????????????????????????????? | | ?????????????????????????????????????????????????? | | ?????????????????????????????????????????????????? | | ?????????????????????????????????????????????????? | | ?????????????????????????????????????????????????? | | ?????????????????????????????????????????????????? | +----------------------------------------------------+ Best States ------------- Heat Dissipation 28 Energy Generation 10 Energy Capacity 125 Matter Stores 287 Matter Capacity 300 Sight Range 16 Terrain Scan Density 10 Evasion (%) 40 Recoil Reduction 1 Item Schematics ----------------- None Robot Schematics ------------------ None Fabricated ------------ Nothing Alien Tech Used ----------------- None Achievements -------------- None Challenges ------------ None Game ------ Seed ThunderArmoredCompressor Manual? 0 Play Time 00:06:19 Cumulative 115.8 hours Start 2020.11.29 @ 23:16:59 End 2020.11.29 @ 23:21:00 Sessions 1 Manual Loads 0 Difficulty Rogue Special Mode Halloween2020/ForbiddenLore Game No. 120 Rogue 113 Adventurer 0 Explorer 7 Win Type - Total 1 Types 0/0/1/0/0/0/0/0/0 Lore% 55 Gallery% 82 Achievement% 64 Wizard Run 0 Options --------- ASCII 0 Keyboard 0 Movement Numpad Keybinds 0 Fullscreen 1 Font 18/X11 Map View 76x50 Tactical HUD 1 Map Filters NONE Filters NONE Steam 1 RUN: 177db198-1dc3-431f-bd14-e2e78e1d7ac1